fUSD/lending_fUSD_20260516
["ID","MTS","AMOUNT","RATE_DAILY","PERIOD"]
[422426673,1778936113000,-249.0,0.00043975,120]
[422426685,1778936113000,-1068.34763661,0.00044,120]
[422426670,1778936113000,-1007.55587607,0.00043934,7]
[422426675,1778936113000,-1043.0,0.00043988,120]
[422426672,1778936113000,-1044.0,0.00043975,120]
[422426679,1778936113000,-1000.0,0.00043999,120]
[422426681,1778936113000,-385479.52120123,0.00044,2]
[422426655,1778936113000,-167.1,0.000439,120]
[422426666,1778936113000,-2808.53998845,0.00043934,7]
[422426653,1778936113000,-211.0,0.000439,120]
[422426625,1778936113000,-220.41134697,0.00043483,120]
[422426647,1778936113000,-2500.0,0.000438,120]
[422426624,1778936113000,-287.9,0.0004346,120]
[422426628,1778936113000,-724.0,0.00043518,120]
[422426630,1778936113000,-3684.0,0.00043518,120]
[422426626,1778936113000,-2500.0,0.000435,120]
[422426629,1778936113000,-2452.0,0.00043518,120]
[422426627,1778936113000,-150.0,0.00043506,120]
[422426631,1778936113000,-983.0,0.00043518,120]
[422426633,1778936113000,-500.0,0.00043518,120]
[422426634,1778936113000,-200.0,0.00043571,2]
[422426632,1778936113000,-1029.0,0.00043518,120]
[422426635,1778936113000,-151.0,0.00043575,60]
[422426642,1778936113000,-831.0,0.0004369,20]
[422426636,1778936113000,-100380.0,0.000436,30]
[422426638,1778936113000,-150.0,0.00043636,120]
[422426637,1778936113000,-150.0,0.00043636,120]
[422426640,1778936113000,-500.0,0.00043682,120]
[422426639,1778936113000,-443.450492,0.00043639,97]
[422426641,1778936113000,-200.0,0.00043682,120]
[422426644,1778936113000,-150.0,0.0004378,120]
[422426654,1778936113000,-153.8173671,0.000439,120]
[422426643,1778936113000,-1100.51233772,0.000437,120]
[422426645,1778936113000,-228.84,0.000438,120]
[422426646,1778936113000,-2515.52,0.000438,120]
[422426649,1778936113000,-10000.0,0.00043836,120]
[422426652,1778936113000,-150.0,0.00043836,60]
[422426648,1778936113000,-150.0,0.00043834,2]
[422426650,1778936113000,-800.0,0.00043836,18]
[422426651,1778936113000,-800.0,0.00043836,18]
[422426690,1778936113000,-178.8352856,0.00044,120]
[422426687,1778936113000,-215.23390534,0.00044,120]
[422426686,1778936113000,-578.39251511,0.00044,120]
[422426718,1778936113000,-354.0,0.00044276,14]
[422426728,1778936113000,-200.0,0.00044381,2]
[422426717,1778936113000,-500.0,0.00044261,72]
[422426719,1778936113000,-308.12,0.0004429,2]
[422426726,1778936113000,-2726.57,0.00044361,120]
[422426725,1778936113000,-292.5,0.00044315,2]
[422426720,1778936113000,-211.0,0.000443,120]
[422426721,1778936113000,-991.15,0.00044301,7]
[422426723,1778936113000,-350.0,0.00044309,120]
[422426724,1778936113000,-295.0,0.00044309,120]
[422426727,1778936113000,-150.0,0.00044362,120]
[422426729,1778936113000,-150.0,0.00044388,120]
[422426714,1778936113000,-16564.16868118,0.00044246,120]
[422426732,1778936113000,-287.9,0.0004443,120]
[422426730,1778936113000,-2500.0,0.000444,120]
[422426731,1778936113000,-300.0,0.000444,120]
[422426738,1778936113000,-2452.0,0.00044518,120]
[422426736,1778936113000,-13658.49336593,0.000445,120]
[422426733,1778936113000,-1973.72093801,0.0004444,120]
[422426739,1778936113000,-3684.0,0.00044518,120]
[422426735,1778936113000,-1182.16588285,0.00044496,7]
[422426734,1778936113000,-302.0,0.00044473,120]
[422426740,1778936113000,-983.0,0.00044518,120]
[422426741,1778936113000,-1029.0,0.00044518,120]
[422426742,1778936113000,-500.0,0.00044518,120]
[422426682,1778936113000,-5000.0,0.00044,21]
[422426737,1778936113000,-724.0,0.00044518,120]
[422426709,1778936113000,-10000.0,0.00044246,4]
[422426722,1778936113000,-350.0,0.00044309,120]
[422426707,1778936113000,-150.0,0.00044246,2]
[422426711,1778936113000,-999.414291,0.00044246,2]
[422426680,1778936113000,-71144.10621624,0.00044,2]
[422426688,1778936113000,-571.29458014,0.00044,120]
[422426689,1778936113000,-281.53006496,0.00044,120]
[422426683,1778936113000,-20000.92010701,0.00044,120]
[422426692,1778936113000,-571.588399,0.00044,57]
[422426691,1778936113000,-2500.0,0.00044,30]
[422426703,1778936113000,-162.0,0.00044207,3]
[422426696,1778936113000,-2500.0,0.000441,120]
[422426697,1778936113000,-150.0,0.00044154,120]
[422426695,1778936113000,-275.69552793,0.00044099,2]
[422426698,1778936113000,-13627.42812802,0.000442,7]
[422426694,1778936113000,-1000.0,0.00044018,120]
[422426702,1778936113000,-250.898253,0.000442,69]
[422426684,1778936113000,-1029.49336352,0.00044,120]
[422426716,1778936113000,-10000.0,0.00044246,4]
[422426701,1778936113000,-160.0,0.000442,69]
[422426700,1778936113000,-160.0,0.000442,69]
[422426699,1778936113000,-152.0,0.000442,120]
[422426704,1778936113000,-150.0,0.00044221,120]
[422426712,1778936113000,-1262.6009,0.00044246,4]
[422426705,1778936113000,-831.0,0.00044224,20]
[422426706,1778936113000,-3287.51746207,0.00044246,30]
[422426715,1778936113000,-2000.0,0.00044246,4]
[422426693,1778936113000,-1000.0,0.00044,30]
[422426710,1778936113000,-999.399801,0.00044246,2]
[422426708,1778936113000,-2000.0,0.00044246,4]
[422426713,1778936113000,-1163.3995,0.00044246,4]
[422426783,1778936114000,-152.0,0.00045,120]
[422426786,1778936114000,-268.39035668,0.00045,120]
[422426774,1778936114000,-31000.0,0.00045,20]
[422426781,1778936114000,-2061.0,0.00045,120]
[422426780,1778936114000,-62532.93,0.00045,120]
[422426785,1778936114000,-1399.95127436,0.00045,120]
[422426773,1778936114000,-251.20022075,0.00045,4]
[422426778,1778936114000,-239.0,0.00045,120]
[422426776,1778936114000,-616.08596664,0.00045,10]
[422426787,1778936114000,-1386.01864247,0.00045,120]
[422426777,1778936114000,-165.32640587,0.00045,10]
[422426782,1778936114000,-4899.61,0.00045,120]
[422426779,1778936114000,-444.0,0.00045,120]
[422426784,1778936114000,-2559.0,0.00045,120]
[422426793,1778936114000,-4286.722738,0.00045,120]
[422426799,1778936114000,-657.64628823,0.00045,30]
[422426794,1778936114000,-227.99300696,0.00045,30]
[422426791,1778936114000,-2500.0,0.00045,120]
[422426788,1778936114000,-460.82469441,0.00045,120]
[422426795,1778936114000,-865.52499157,0.00045,30]
[422426792,1778936114000,-610.85829132,0.00045,30]
[422426790,1778936114000,-2769.32826515,0.00045,120]
[422426798,1778936114000,-1740.83416483,0.00045,120]
[422426797,1778936114000,-186.25038179,0.00045,30]
[422426796,1778936114000,-242.06496319,0.00045,120]
[422426800,1778936114000,-607.5335847,0.00045,120]
[422426802,1778936114000,-2814.95883958,0.00045,120]
[422426789,1778936114000,-1065.07066697,0.00045,120]
[422426767,1778936114000,-594.0,0.00044988,120]
[422426744,1778936114000,-500.0,0.00044577,120]
[422426772,1778936114000,-310.0,0.00045,2]
[422426804,1778936114000,-220.84519322,0.00045,120]
[422426748,1778936114000,-211.0,0.000447,120]
[422426746,1778936114000,-2726.57,0.00044635,120]
[422426747,1778936114000,-1000.0,0.00044673,120]
[422426750,1778936114000,-150.0,0.00044707,120]
[422426745,1778936114000,-150.0,0.00044627,2]
[422426743,1778936114000,-151.0,0.00044575,60]
[422426749,1778936114000,-2500.0,0.000447,120]
[422426753,1778936114000,-150.0,0.00044834,2]
[422426752,1778936114000,-12632.86340975,0.000448,120]
[422426754,1778936114000,-500.24023908,0.0004489,120]
[422426751,1778936114000,-831.0,0.00044758,21]
[422426759,1778936114000,-287.9,0.0004491,120]
[422426768,1778936114000,-1918.0,0.00044988,120]
[422426762,1778936114000,-1044.0,0.00044975,120]
[422426763,1778936114000,-249.0,0.00044975,120]
[422426756,1778936114000,-167.1,0.000449,120]
[422426761,1778936114000,-500.0,0.00044931,120]
[422426757,1778936114000,-2389450.42087224,0.000449,120]
[422426758,1778936114000,-2726.57,0.00044909,120]
[422426760,1778936114000,-500.0,0.00044931,120]
[422426765,1778936114000,-1314.0,0.00044988,120]
[422426769,1778936114000,-340.0,0.00044988,120]
[422426770,1778936114000,-1000.0,0.00044999,120]
[422426771,1778936114000,-400.39916749,0.00045,2]
[422426764,1778936114000,-2501.0,0.00044988,120]
[422426766,1778936114000,-1043.0,0.00044988,120]
[422426775,1778936114000,-29644.12161049,0.00045,10]
[422426755,1778936114000,-1100.5861343,0.000449,30]
[422426803,1778936114000,-227.08130158,0.00045,120]
[422426801,1778936114000,-218.44626753,0.00045,120]
[422426805,1778936114000,-1303.86888819,0.00045,120]
[422426840,1778936114000,-167.36,0.00045205,120]
[422426851,1778936114000,-150.0,0.00045478,120]
[422426843,1778936114000,-2131.14614143,0.00045318,7]
[422426841,1778936114000,-831.0,0.00045292,21]
[422426852,1778936114000,-150.0,0.00045492,30]
[422426839,1778936114000,-461.53,0.00045205,30]
[422426850,1778936114000,-500.0,0.00045471,120]
[422426842,1778936114000,-2500.0,0.000453,120]
[422426849,1778936114000,-2726.57,0.00045457,120]
[422426847,1778936114000,-287.9,0.000454,120]
[422426848,1778936114000,-621.59936634,0.00045421,120]
[422426845,1778936114000,-1091.69875321,0.00045318,7]
[422426846,1778936114000,-1186.68910823,0.00045318,7]
[422426857,1778936114000,-663.71786296,0.00045492,30]
[422426856,1778936114000,-150.0,0.00045492,30]
[422426864,1778936114000,-182.72518752,0.000455,120]
[422426855,1778936114000,-595.57617731,0.00045492,30]
[422426854,1778936114000,-150.0,0.00045492,30]
[422426865,1778936114000,-2013.28981258,0.000455,120]
[422426853,1778936114000,-377.90049415,0.00045492,30]
[422426858,1778936114000,-1000.0,0.00045499,120]
[422426859,1778936114000,-1975.8692,0.000455,120]
[422426863,1778936114000,-5000.0,0.000455,120]
[422426862,1778936114000,-1624.38,0.000455,120]
[422426860,1778936114000,-211.0,0.000455,120]
[422426861,1778936114000,-1624.38,0.000455,120]
[422426867,1778936114000,-724.0,0.00045518,120]
[422426866,1778936114000,-150.0,0.00045516,120]
[422426811,1778936114000,-1119.0,0.00045,120]
[422426836,1778936114000,-291.0,0.000452,74]
[422426837,1778936114000,-2724.28,0.00045205,120]
[422426844,1778936114000,-3276.62998653,0.00045318,7]
[422426833,1778936114000,-921.22881475,0.00045184,120]
[422426834,1778936114000,-200.0,0.00045192,2]
[422426813,1778936114000,-5000.0,0.00045,120]
[422426808,1778936114000,-953.65772789,0.00045,80]
[422426806,1778936114000,-1014.93610192,0.00045,120]
[422426807,1778936114000,-2410.14058138,0.00045,30]
[422426810,1778936114000,-572.58,0.00045,120]
[422426809,1778936114000,-227.08802726,0.00045,120]
[422426815,1778936114000,-1000.0,0.00045,30]
[422426825,1778936114000,-500.0,0.00045178,30]
[422426819,1778936114000,-213.03663921,0.00045083,40]
[422426827,1778936114000,-500.0,0.00045178,30]
[422426818,1778936114000,-200.0,0.00045024,120]
[422426826,1778936114000,-500.0,0.00045178,30]
[422426822,1778936114000,-1442.8497898,0.0004517,61]
[422426812,1778936114000,-163.8,0.00045,85]
[422426817,1778936114000,-10358.49303724,0.00045,30]
[422426823,1778936114000,-500.0,0.00045178,30]
[422426838,1778936114000,-411.75,0.00045205,120]
[422426829,1778936114000,-296.19759389,0.00045178,120]
[422426835,1778936114000,-291.000001,0.000452,74]
[422426832,1778936114000,-2726.57,0.00045183,120]
[422426831,1778936114000,-295.22608979,0.00045178,120]
[422426830,1778936114000,-210.09156922,0.00045178,120]
[422426820,1778936114000,-211.0,0.000451,120]
[422426816,1778936114000,-3789.71,0.00045,120]
[422426814,1778936114000,-3300.0,0.00045,120]
[422426821,1778936114000,-239.01175537,0.000451,120]
[422426824,1778936114000,-500.0,0.00045178,30]
[422426828,1778936114000,-531.40008321,0.00045178,30]
[422426912,1778936115000,-594.0,0.00045988,120]
[422426910,1778936115000,-1314.0,0.00045988,120]
[422426906,1778936115000,-190.09585883,0.00045903,3]
[422426911,1778936115000,-1043.0,0.00045988,120]
[422426908,1778936115000,-249.0,0.00045975,120]
[422426899,1778936115000,-831.0,0.00045826,22]
[422426915,1778936115000,-650.57779022,0.00045995,60]
[422426907,1778936115000,-1044.0,0.00045975,120]
[422426904,1778936115000,-211.0,0.000459,120]
[422426901,1778936115000,-35586.52570228,0.0004588,120]
[422426905,1778936115000,-2500.0,0.000459,120]
[422426896,1778936115000,-1553.4632932,0.000457,120]
[422426909,1778936115000,-2501.0,0.00045988,120]
[422426914,1778936115000,-340.0,0.00045988,120]
[422426918,1778936115000,-260.42702571,0.00046,120]
[422426927,1778936115000,-336.57041482,0.00046,120]
[422426929,1778936115000,-8054.706498,0.00046,120]
[422426928,1778936115000,-1399.25300965,0.00046,120]
[422426916,1778936115000,-1000.0,0.00045999,120]
[422426919,1778936115000,-1000.0,0.00046,30]
[422426920,1778936115000,-209.02849754,0.00046,30]
[422426924,1778936115000,-1505.68158591,0.00046,120]
[422426923,1778936115000,-492.51412811,0.00046,120]
[422426925,1778936115000,-489.37764654,0.00046,120]
[422426922,1778936115000,-1436.62172935,0.00046,120]
[422426926,1778936115000,-156.49324108,0.00046,120]
[422426921,1778936115000,-988.16973545,0.00046,120]
[422426932,1778936115000,-2282.2986742,0.00046,30]
[422426897,1778936115000,-152.0,0.000458,120]
[422426913,1778936115000,-1918.0,0.00045988,120]
[422426898,1778936115000,-150.0,0.00045817,120]
[422426877,1778936115000,-203.9112598,0.0004557,60]
[422426893,1778936115000,-175.03,0.00045616,120]
[422426931,1778936115000,-859.69485985,0.00046,120]
[422426878,1778936115000,-200.0,0.0004557,30]
[422426872,1778936115000,-500.0,0.00045518,120]
[422426869,1778936115000,-3684.0,0.00045518,120]
[422426870,1778936115000,-983.0,0.00045518,120]
[422426868,1778936115000,-2452.0,0.00045518,120]
[422426876,1778936115000,-200.0,0.0004557,30]
[422426871,1778936115000,-1029.0,0.00045518,120]
[422426874,1778936115000,-532.76,0.0004555,120]
[422426875,1778936115000,-3104.95,0.00045556,90]
[422426873,1778936115000,-150.0,0.00045541,120]
[422426879,1778936115000,-151.0,0.00045575,60]
[422426880,1778936115000,-503.97120438,0.00045589,76]
[422426881,1778936115000,-2065.03700677,0.00045594,7]
[422426890,1778936115000,-2787.02211928,0.00045594,7]
[422426882,1778936115000,-2039.0191621,0.00045594,2]
[422426883,1778936115000,-1596.49175981,0.00045594,7]
[422426885,1778936115000,-2073.36737869,0.00045594,7]
[422426884,1778936115000,-3997.41134109,0.00045594,7]
[422426886,1778936115000,-3132.34254028,0.00045594,7]
[422426889,1778936115000,-4976.80162876,0.00045594,7]
[422426887,1778936115000,-4962.22435733,0.00045594,7]
[422426888,1778936115000,-2147.37258705,0.00045594,7]
[422426892,1778936115000,-1705.68639494,0.000456,120]
[422426902,1778936115000,-287.9,0.0004588,120]
[422426903,1778936115000,-1000.0,0.00045898,120]
[422426891,1778936115000,-2500.0,0.000456,120]
[422426894,1778936115000,-13919.20941498,0.00045678,120]
[422426895,1778936115000,-167.15045357,0.000457,120]
[422426900,1778936115000,-150.0,0.00045834,2]
[422426941,1778936115000,-30447.62719509,0.000461,119]
[422426917,1778936115000,-341.52,0.00046,2]
[422426933,1778936115000,-6160.0,0.00046,120]
[422426965,1778936115000,-160.0,0.000465,80]
[422426963,1778936115000,-196.8173932,0.00046499,120]
[422426971,1778936115000,-3684.0,0.00046518,120]
[422426981,1778936115000,-1030.0,0.00046574,30]
[422426970,1778936115000,-2452.0,0.00046518,120]
[422426975,1778936115000,-500.0,0.00046518,120]
[422426983,1778936115000,-500.0,0.00046574,30]
[422426974,1778936115000,-170.0,0.00046518,60]
[422426982,1778936115000,-200.0,0.00046574,30]
[422426972,1778936115000,-983.0,0.00046518,120]
[422426973,1778936115000,-1029.0,0.00046518,120]
[422426977,1778936115000,-1351.04672325,0.00046573,7]
[422426976,1778936115000,-400.0,0.0004657,3]
[422426979,1778936115000,-500.0,0.00046574,30]
[422426980,1778936115000,-151.0,0.00046574,30]
[422426985,1778936115000,-500.0,0.00046574,30]
[422426986,1778936115000,-500.0,0.00046574,120]
[422426984,1778936115000,-200.0,0.00046574,30]
[422426996,1778936115000,-539.24,0.00046574,120]
[422426987,1778936115000,-151.0,0.00046574,30]
[422426988,1778936115000,-151.0,0.00046574,120]
[422426995,1778936115000,-156.587,0.00046574,120]
[422426989,1778936115000,-200.0,0.00046574,120]
[422426992,1778936115000,-200.0,0.00046574,120]
[422426990,1778936115000,-1068.11,0.00046574,120]
[422426993,1778936115000,-518.5,0.00046574,120]
[422426991,1778936115000,-500.0,0.00046574,120]
[422426994,1778936115000,-520.0,0.00046574,30]
[422426930,1778936115000,-3249.83593664,0.00046,120]
[422426962,1778936115000,-197.46506259,0.00046499,120]
[422426966,1778936115000,-934.59020022,0.000465,120]
[422426978,1778936115000,-1538.43187735,0.00046574,30]
[422426967,1778936115000,-2500.0,0.000465,120]
[422426969,1778936115000,-724.0,0.00046518,120]
[422426938,1778936115000,-150.0,0.00046019,120]
[422426940,1778936115000,-500.0,0.00046027,120]
[422426939,1778936115000,-216.0,0.00046019,120]
[422426936,1778936115000,-200.0,0.00046002,2]
[422426942,1778936115000,-6783.99,0.00046165,2]
[422426935,1778936115000,-500.0,0.00046,120]
[422426937,1778936115000,-275.0,0.00046015,120]
[422426944,1778936115000,-2500.0,0.000462,120]
[422426955,1778936115000,-211.0,0.000464,120]
[422426997,1778936115000,-500.0,0.00046574,30]
[422426943,1778936115000,-160.0,0.000462,79]
[422426946,1778936115000,-220.41134697,0.00046222,120]
[422426954,1778936115000,-684.58194911,0.000464,120]
[422426945,1778936115000,-297.65247826,0.000462,30]
[422426934,1778936115000,-1000.0,0.00046,30]
[422426968,1778936115000,-866.59,0.000465,120]
[422426947,1778936115000,-218.40099809,0.00046222,120]
[422426964,1778936115000,-160.0,0.000465,80]
[422426957,1778936115000,-164.0,0.0004646,120]
[422426961,1778936115000,-1000.0,0.00046499,120]
[422426960,1778936115000,-150.0,0.00046484,120]
[422426958,1778936115000,-162.0,0.0004648,120]
[422426959,1778936115000,-23031.35944885,0.0004648,120]
[422426953,1778936115000,-171.042,0.00046383,77]
[422426952,1778936115000,-162.0,0.0004638,120]
[422426950,1778936115000,-500.0,0.00046366,120]
[422426949,1778936115000,-831.0,0.0004636,23]
[422426948,1778936115000,-2000.0,0.000463,7]
[422426951,1778936115000,-200.0,0.00046366,120]
[422426956,1778936115000,-155.13,0.00046434,120]
[422427016,1778936116000,-170.0,0.00046574,30]
[422427019,1778936116000,-1500.0,0.00046574,30]
[422427022,1778936116000,-1555.5,0.00046574,30]
[422427013,1778936116000,-152.0,0.00046574,30]
[422427017,1778936116000,-176.29,0.00046574,120]
[422427018,1778936116000,-1000.0,0.00046574,30]
[422427035,1778936116000,-845.79996418,0.00046574,30]
[422427020,1778936116000,-151.0,0.00046574,30]
[422427025,1778936116000,-1613.0535,0.00046574,30]
[422427036,1778936116000,-251.0,0.00046574,30]
[422427024,1778936116000,-151.0,0.00046574,30]
[422427037,1778936116000,-260.287,0.00046574,120]
[422427023,1778936116000,-156.587,0.00046574,120]
[422427021,1778936116000,-1000.0,0.00046574,120]
[422427015,1778936116000,-152.0,0.00046574,120]
[422427003,1778936116000,-151.0,0.00046574,120]
[422427012,1778936116000,-156.587,0.00046574,120]
[422427014,1778936116000,-1048.56120775,0.00046574,30]
[422427010,1778936116000,-151.0,0.00046574,30]
[422427005,1778936116000,-151.0,0.00046574,30]
[422427007,1778936116000,-160.0,0.00046574,30]
[422427006,1778936116000,-151.0,0.00046574,120]
[422427004,1778936116000,-642.94,0.00046574,120]
[422427001,1778936116000,-151.0,0.00046574,30]
[422427002,1778936116000,-620.0,0.00046574,30]
[422427008,1778936116000,-1734.97900068,0.00046574,30]
[422426999,1778936116000,-220.0,0.00046574,30]
[422427009,1778936116000,-160.0,0.00046574,120]
[422427000,1778936116000,-220.0,0.00046574,120]
[422426998,1778936116000,-500.0,0.00046574,120]
[422427011,1778936116000,-354.71991006,0.00046574,30]
[422427027,1778936116000,-1672.7364795,0.00046574,30]
[422427041,1778936116000,-320.0,0.00046575,30]
[422427029,1778936116000,-500.0,0.00046574,30]
[422427057,1778936116000,-688.0,0.00046575,30]
[422427028,1778936116000,-1734.62772924,0.00046574,30]
[422427055,1778936116000,-661.0,0.00046575,30]
[422427063,1778936116000,-151.0,0.00046575,120]
[422427054,1778936116000,-408.0,0.00046575,30]
[422427051,1778936116000,-384.0,0.00046575,30]
[422427061,1778936116000,-151.0,0.00046575,120]
[422427060,1778936116000,-151.0,0.00046575,120]
[422427058,1778936116000,-162.0,0.00046575,3]
[422427059,1778936116000,-2447.1,0.00046575,120]
[422427062,1778936116000,-151.0,0.00046575,120]
[422427052,1778936116000,-320.0,0.00046575,30]
[422427044,1778936116000,-320.0,0.00046575,30]
[422427045,1778936116000,-320.0,0.00046575,30]
[422427048,1778936116000,-320.0,0.00046575,30]
[422427053,1778936116000,-646.0,0.00046575,30]
[422427049,1778936116000,-320.0,0.00046575,30]
[422427034,1778936116000,-2005.9555727,0.00046574,30]
[422427050,1778936116000,-151.0,0.00046575,60]
[422427030,1778936116000,-1798.80895522,0.00046574,30]
[422427031,1778936116000,-518.5,0.00046574,120]
[422427032,1778936116000,-1865.36488657,0.00046574,30]
[422427033,1778936116000,-1934.38338737,0.00046574,30]
[422427040,1778936116000,-150.0,0.00046575,60]
[422427026,1778936116000,-156.587,0.00046574,120]
[422427038,1778936116000,-151.0,0.00046574,30]
[422427039,1778936116000,-151.0,0.00046574,120]
[422427046,1778936116000,-233.0,0.00046575,30]
[422427043,1778936116000,-320.0,0.00046575,30]
[422427042,1778936116000,-320.0,0.00046575,30]
[422427047,1778936116000,-320.0,0.00046575,30]
[422427148,1778936117000,-150.0,0.0004782,120]
[422427150,1778936117000,-158.25987357,0.00047896,5]
[422427149,1778936117000,-150.0,0.00047834,2]
[422427147,1778936117000,-150.0,0.00047806,120]
[422427152,1778936117000,-372.68,0.00047924,120]
[422427156,1778936117000,-831.0,0.00047962,24]
[422427144,1778936117000,-257.522822,0.00047707,120]
[422427160,1778936117000,-160.94824406,0.00048,2]
[422427153,1778936117000,-151.02624762,0.00047945,120]
[422427155,1778936117000,-1000.0,0.00047945,30]
[422427157,1778936117000,-1000.0,0.00047999,120]
[422427161,1778936117000,-48098.98483353,0.00048,120]
[422427158,1778936117000,-45643.28781904,0.00048,120]
[422427159,1778936117000,-500.0,0.00048,120]
[422427162,1778936117000,-50000.0,0.00048,60]
[422427146,1778936117000,-150.0,0.00047718,120]
[422427164,1778936117000,-11996.94572101,0.00048,10]
[422427154,1778936117000,-500.0,0.00047945,120]
[422427145,1778936117000,-150.0,0.00047715,120]
[422427129,1778936117000,-3651.14326479,0.00047453,120]
[422427140,1778936117000,-372.68,0.00047615,120]
[422427163,1778936117000,-20000.0,0.00048,90]
[422427125,1778936117000,-500.0,0.00047405,120]
[422427127,1778936117000,-33397.3459,0.00047444,30]
[422427126,1778936117000,-831.0,0.00047428,24]
[422427131,1778936117000,-1500.0,0.000475,120]
[422427130,1778936117000,-500.0,0.000475,120]
[422427128,1778936117000,-514.41302699,0.0004745,120]
[422427132,1778936117000,-40000.0,0.000475,120]
[422427151,1778936117000,-52631.27,0.000479,120]
[422427134,1778936117000,-656.46866088,0.000475,120]
[422427135,1778936117000,-155.37682889,0.000475,120]
[422427136,1778936117000,-500.0,0.00047518,120]
[422427137,1778936117000,-5306.21427817,0.000476,2]
[422427138,1778936117000,-211.0,0.000476,120]
[422427139,1778936117000,-150.0,0.00047607,120]
[422427141,1778936117000,-200.0,0.00047623,2]
[422427143,1778936117000,-2500.0,0.000477,120]
[422427142,1778936117000,-150.0,0.00047642,120]
[422427133,1778936117000,-10000.0,0.000475,120]
[422427172,1778936117000,-211.0,0.00048,120]
[422427201,1778936117000,-500.0,0.00048518,120]
[422427167,1778936117000,-10000.0,0.00048,120]
[422427189,1778936117000,-150.0,0.00048325,120]
[422427187,1778936117000,-2500.0,0.000483,120]
[422427197,1778936117000,-831.0,0.00048496,25]
[422427193,1778936117000,-211.0,0.000484,120]
[422427194,1778936117000,-200.0,0.00048433,2]
[422427196,1778936117000,-150.0,0.00048469,120]
[422427192,1778936117000,-156.54805829,0.0004835,2]
[422427195,1778936117000,-421.0,0.00048443,90]
[422427200,1778936117000,-156.65119328,0.000485,120]
[422427198,1778936117000,-1587.3847086,0.000485,120]
[422427203,1778936117000,-200.0,0.000486,120]
[422427202,1778936117000,-372.68,0.00048542,120]
[422427204,1778936117000,-300000.0,0.000486,120]
[422427207,1778936117000,-150.0,0.00048657,120]
[422427205,1778936117000,-2500.0,0.000486,120]
[422427206,1778936117000,-1000.0,0.0004863,30]
[422427165,1778936117000,-10000.0,0.00048,30]
[422427190,1778936117000,-367.27,0.0004833,120]
[422427191,1778936117000,-244.7,0.00048348,120]
[422427199,1778936117000,-10000.0,0.000485,120]
[422427183,1778936117000,-548.31820516,0.00048219,120]
[422427170,1778936117000,-5088139.0439072,0.00048,120]
[422427188,1778936117000,-901.2680059,0.000483,120]
[422427169,1778936117000,-252.69029548,0.00048,120]
[422427166,1778936117000,-226.21138549,0.00048,120]
[422427171,1778936117000,-18555.0,0.00048,120]
[422427174,1778936117000,-2500.0,0.00048,120]
[422427173,1778936117000,-1452.56901891,0.00048,120]
[422427175,1778936117000,-3249.83593664,0.00048,120]
[422427176,1778936117000,-859.69485985,0.00048,120]
[422427168,1778936117000,-500.0,0.00048,120]
[422427181,1778936117000,-150.0,0.00048108,120]
[422427180,1778936117000,-150.0,0.00048105,120]
[422427177,1778936117000,-6654.493931,0.00048,120]
[422427184,1778936117000,-800.0,0.0004822,120]
[422427182,1778936117000,-500.0,0.00048154,120]